fUSD/lending_fUSD_20260423
["ID","MTS","AMOUNT","RATE_DAILY","PERIOD"]
[421023783,1776941432081,-1200.0,7.643e-05,2]
[421023784,1776941432091,-300.0,7.643e-05,2]
[421023785,1776941432102,-68.09710004,7.644e-05,2]
[421023786,1776941432116,-81.90289996,7.644e-05,2]
[421023787,1776941432126,-150.0,7.644e-05,2]
[421023788,1776941432137,-150.0,7.644e-05,2]
[421023789,1776941432147,-150.0,7.644e-05,2]
[421023790,1776941432157,-207.2162248,7.644e-05,2]
[421023791,1776941432168,-150.0,7.644e-05,2]
[421023792,1776941432178,-150.0,7.644e-05,2]
[421023793,1776941432188,-150.0,7.644e-05,2]
[421023794,1776941432198,-150.0,7.644e-05,2]
[421023795,1776941432208,-150.0,7.709e-05,2]
[421023796,1776941432218,-150.0,7.765e-05,2]
[421023797,1776941432227,-150.0,7.774e-05,2]
[421023798,1776941432237,-150.0,7.84e-05,2]
[421023799,1776941432247,-150.0,7.886e-05,2]
[421023800,1776941432256,-150.0,7.905e-05,2]
[421023801,1776941432266,-150.0,7.97e-05,2]
[421023802,1776941432277,-150.0,8.008e-05,2]
[421023803,1776941432289,-150.0,8.036e-05,2]
[421023804,1776941432299,-253.0,8.087e-05,2]
[421023805,1776941432310,-213.89552016,8.087e-05,2]
[421023806,1776941432320,-150.0,8.101e-05,2]
[421023807,1776941432332,-134.11201195,8.129e-05,2]
[421023809,1776941432347,-15.88798805,8.129e-05,2]
[421023811,1776941432357,-150.0,8.166e-05,2]
[421023813,1776941432367,-209.05959581,8.219e-05,2]
[421023816,1776941432386,-70.94040419,8.219e-05,2]
[421023818,1776941432398,-150.0,8.232e-05,2]
[421023820,1776941432408,-150.0,8.25e-05,2]
[421023822,1776941432418,-43856.4168,8.27e-05,2]
[421023824,1776941432427,-150.0,8.297e-05,2]
[421023826,1776941432437,-3463.138,8.336e-05,2]
[421023828,1776941432450,-251.246,8.336e-05,2]
[421023831,1776941432460,-150.0,8.362e-05,2]
[421023835,1776941432470,-150.0,8.37e-05,2]
[421023837,1776941432480,-150.0,8.372e-05,2]
[421023839,1776941432489,-1680.0,8.407e-05,2]
[421023842,1776941432499,-420.0,8.407e-05,2]
[421023844,1776941432508,-300.0,8.407e-05,2]
[421023847,1776941432518,-300.0,8.407e-05,2]
[421023851,1776941432528,-300.0,8.407e-05,2]
[421023853,1776941432539,-300.0,8.407e-05,2]
[421023856,1776941432549,-300.0,8.407e-05,2]
[421023858,1776941432559,-5000.0,8.407e-05,2]
[421023860,1776941432569,-5000.0,8.407e-05,2]
[421023862,1776941432578,-5000.0,8.407e-05,2]
[421023864,1776941432588,-3444.67512068,8.407e-05,2]
[421023866,1776941432597,-150.0,8.428e-05,2]
[421023868,1776941432607,-181.64,8.438e-05,2]
[421023870,1776941432616,-150.0,8.493e-05,2]
[421023872,1776941432626,-150.0,8.493e-05,2]
[421023874,1776941432636,-150.0,8.493e-05,2]
[421023876,1776941432645,-150.0,8.493e-05,2]
[421023878,1776941432654,-150.0,8.493e-05,2]
[421023880,1776941432663,-500.0,8.505e-05,2]
[421023882,1776941432673,-214.09132954,8.506e-05,2]
[421023884,1776941432682,-500.0,8.506e-05,2]
[421023886,1776941432691,-483.69636834,8.506e-05,2]
[421023888,1776941432700,-500.0,8.506e-05,2]
[421023890,1776941432710,-500.0,8.506e-05,2]
[421023892,1776941432719,-500.0,8.506e-05,2]
[421023894,1776941432728,-500.0,8.506e-05,2]
[421023896,1776941432737,-500.0,8.506e-05,2]
[421023898,1776941432746,-500.0,8.506e-05,2]
[421023900,1776941432756,-500.0,8.506e-05,2]
[421023902,1776941432765,-500.0,8.506e-05,2]
[421023904,1776941432774,-562.73080693,8.506e-05,2]
[421023906,1776941432784,-500.0,8.506e-05,2]
[421023908,1776941432794,-450.0,8.506e-05,2]
[421023910,1776941432803,-500.0,8.506e-05,2]
[421023912,1776941432812,-500.0,8.506e-05,2]
[421023914,1776941432822,-500.0,8.506e-05,2]
[421023916,1776941432831,-500.0,8.506e-05,2]
[421023918,1776941432840,-614.57603618,8.506e-05,2]
[421023920,1776941432849,-500.0,8.506e-05,2]
[421023922,1776941432858,-41.19245193,8.506e-05,2]
[421023924,1776941432870,-458.80754807,8.506e-05,2]
[421023926,1776941432880,-500.0,8.506e-05,2]
[421023928,1776941432890,-295.6105387,8.506e-05,2]
[421023933,1776941432924,-204.3894613,8.506e-05,2]
[421023935,1776941432934,-191.45838812,8.506e-05,2]
[421023937,1776941432943,-20.22909625,8.506e-05,2]
[421023939,1776941432954,-479.77090375,8.506e-05,2]
[421023941,1776941432964,-500.0,8.506e-05,2]
[421023943,1776941432974,-500.0,8.506e-05,2]
[421023945,1776941432983,-1078.84688241,8.506e-05,3]
[421023947,1776941432993,-150.0,8.506e-05,2]
[421023949,1776941433002,-2291.38335365,8.507e-05,2]
[421024000,1776941438159,-3469.7027034,8.507e-05,2]
[421024001,1776941438266,-1360.34558548,8.507e-05,2]
[421024002,1776941438374,-580.23789574,8.507e-05,2]
[421024003,1776941438387,-76165.53357054,8.507e-05,2]
[421024004,1776941438399,-48993.48432967,8.507e-05,2]
[421024005,1776941438411,-829.67010334,8.507e-05,2]
[421024006,1776941438483,-6289.73662505,8.507e-05,2]
[421024028,1776941441754,-324.59846289,8.438e-05,2]
[421024029,1776941441766,-175.40153711,8.438e-05,2]
[421024030,1776941441775,-498.04568341,8.507e-05,2]
[421024031,1776941441786,-325.85652962,8.507e-05,2]
[421024032,1776941441874,-774.0,8.507e-05,2]
[421024045,1776941443283,-1852.76279724,8.507e-05,2]
[421024046,1776941443296,-787.0,8.507e-05,2]
[421024052,1776941446296,-5532.0,8.507e-05,2]
[421024057,1776941798491,-226.31,8.2e-05,2]
[421024058,1776941798515,-142.69,8.219e-05,2]
[421024068,1776942485011,803.01453568,6.59e-05,2]
[421024069,1776942545510,800.57109369,6.59e-05,2]
[421024070,1776942546183,209.30019898,6.59e-05,2]
[421024098,1776942632454,-151.0,8.087e-05,2]
[421024099,1776942632463,-280.0,8.219e-05,2]
[421024100,1776942632473,-5000.0,8.22e-05,2]
[421024101,1776942632482,-300.0,8.221e-05,2]
[421024102,1776942632491,-2354.68351985,8.227e-05,2]
[421024103,1776942632500,-300.0,8.227e-05,2]
[421024104,1776942632510,-300.0,8.227e-05,2]
[421024105,1776942632519,-300.0,8.227e-05,2]
[421024106,1776942632528,-264.3,8.232e-05,2]
[421024107,1776942632538,-300.0,8.239e-05,2]
[421024108,1776942632547,-177.32,8.271e-05,2]
[421024109,1776942632556,-206.88,8.282e-05,2]
[421024110,1776942632566,-221.65,8.294e-05,2]
[421024111,1776942632575,-150.0,8.3e-05,2]
[421024112,1776942632584,-150.0,8.306e-05,2]
[421024113,1776942632594,-195.04,8.31e-05,2]
[421024114,1776942632603,-265.98,8.318e-05,2]
[421024115,1776942632613,-310.31,8.341e-05,2]
[421024117,1776942632621,-819.9870533,8.35e-05,2]
[421024119,1776942632631,-300.0,8.364e-05,2]
[421024120,1776942632640,-455.1,8.365e-05,2]
[421024121,1776942632649,-218.94,8.365e-05,2]
[421024122,1776942632658,-212.73,8.365e-05,2]
[421024123,1776942632669,-218.73,8.365e-05,2]
[421024124,1776942632678,-197.05,8.365e-05,2]
[421024125,1776942632687,-398.07,8.365e-05,2]
[421024126,1776942632697,-347.91,8.365e-05,2]
[421024127,1776942632707,-2285.4488,8.407e-05,2]
[421024128,1776942632716,-1974.3743,8.407e-05,2]
[421024129,1776942632726,-81444.0647,8.407e-05,2]
[421024130,1776942632736,-61327.35743572,8.43e-05,2]
[421024132,1776942632746,-152.0,8.451e-05,7]
[421024134,1776942632756,-151.0,8.504e-05,2]
[421024136,1776942632766,-1455.7177571,8.506e-05,2]
[421024137,1776942632774,-6593.08317413,8.506e-05,2]
[421024138,1776942632787,-29639.59713847,8.506e-05,2]
[421024139,1776942632795,-2032.42001745,8.507e-05,2]
[421024140,1776942632819,-712.750005,8.507e-05,2]
[421024141,1776942632830,-606.87208795,8.507e-05,2]
[421024142,1776942632839,-244.41201274,8.507e-05,2]
[421024143,1776942632850,-487.38503545,8.507e-05,2]
[421024144,1776942632861,-717.79063966,8.507e-05,2]
[421024145,1776942632893,-509.19197519,8.507e-05,2]
[421024146,1776942632909,-675.352,8.507e-05,2]
[421024147,1776942632920,-1652.648,8.507e-05,2]
[421024161,1776942638472,-577.39383026,8.507e-05,2]
[421024162,1776942638483,-277.1848605,8.507e-05,2]
[421024163,1776942638625,-222.8151395,8.507e-05,2]
[421024164,1776942638636,-183.0,8.507e-05,3]
[421024165,1776942638648,-1342.0,8.507e-05,3]
[421024166,1776942638658,-156.0,8.507e-05,3]
[421024167,1776942638667,-1532.0,8.507e-05,2]
[421024168,1776942638678,-1532.0,8.507e-05,2]
[421024169,1776942638688,-1288.23732989,8.507e-05,2]
[421024170,1776942638698,-1532.0,8.507e-05,2]
[421024171,1776942638708,-152.0,8.522e-05,7]
[421024172,1776942638719,-152.0,8.522e-05,7]
[421024173,1776942638729,-152.0,8.53e-05,7]
[421024174,1776942638739,-152.0,8.53e-05,7]
[421024175,1776942638748,-152.0,8.53e-05,7]
[421024176,1776942638759,-33086.6184,8.718e-05,2]
[421024177,1776942638768,-2500.0,8.718e-05,2]
[421024178,1776942638778,-151.0,8.737e-05,2]
[421024179,1776942638787,-500.0,8.739e-05,2]
[421024180,1776942638797,-500.0,8.739e-05,2]
[421024181,1776942638807,-500.0,8.739e-05,2]
[421024182,1776942638817,-500.0,8.739e-05,2]
[421024183,1776942638827,-500.0,8.739e-05,2]
[421024184,1776942638837,-500.0,8.739e-05,2]
[421024185,1776942638846,-500.0,8.739e-05,2]
[421024186,1776942638856,-500.0,8.739e-05,2]
[421024187,1776942638866,-636.22697445,8.739e-05,2]
[421024188,1776942638876,-1839.0,8.775e-05,2]
[421024189,1776942638886,-1839.0,8.775e-05,2]
[421024190,1776942638895,-1839.0,8.775e-05,2]
[421024191,1776942638905,-1839.0,8.775e-05,2]
[421024192,1776942638918,-1839.0,8.775e-05,2]
[421024193,1776942638929,-1839.0,8.775e-05,2]
[421024194,1776942638939,-1839.0,8.775e-05,2]
[421024196,1776942638949,-1839.0,8.775e-05,2]
[421024198,1776942638959,-1839.0,8.775e-05,2]
[421024200,1776942638969,-1839.0,8.775e-05,2]
[421024202,1776942638979,-1839.0,8.775e-05,2]
[421024204,1776942638989,-1839.0,8.775e-05,2]
[421024206,1776942638998,-1839.0,8.775e-05,2]
[421024208,1776942639009,-1839.0,8.775e-05,2]
[421024210,1776942639018,-1497.6357267,8.775e-05,2]
[421024213,1776942639031,-341.3642733,8.775e-05,2]
[421024215,1776942639041,-1839.0,8.775e-05,2]
[421024217,1776942639051,-1839.0,8.775e-05,2]
[421024219,1776942639060,-1839.0,8.775e-05,2]
[421024221,1776942639070,-1839.0,8.775e-05,2]
[421024223,1776942639079,-1839.0,8.775e-05,2]
[421024225,1776942639089,-1839.0,8.775e-05,2]
[421024227,1776942639098,-1839.0,8.775e-05,2]
[421024229,1776942639108,-1839.0,8.775e-05,2]
[421024231,1776942639118,-1846.0,8.775e-05,2]
[421024233,1776942639128,-500.0,8.775e-05,2]
[421024236,1776942639138,-500.0,8.775e-05,2]
[421024238,1776942639148,-500.0,8.775e-05,2]
[421024239,1776942639158,-500.0,8.775e-05,2]
[421024240,1776942639168,-500.0,8.775e-05,2]
[421024241,1776942639179,-500.0,8.775e-05,2]
[421024242,1776942639188,-214.42567638,8.775e-05,2]
[421024243,1776942639198,-500.0,8.775e-05,2]
[421024244,1776942639209,-500.0,8.775e-05,2]
[421024245,1776942639219,-500.0,8.775e-05,2]
[421024246,1776942639229,-609.85706658,8.775e-05,2]
[421024247,1776942639238,-500.0,8.775e-05,2]
[421024248,1776942639248,-150.0,8.775e-05,2]
[421024249,1776942639258,-500.0,8.775e-05,2]
[421024250,1776942639268,-500.0,8.775e-05,2]
[421024251,1776942639277,-500.0,8.775e-05,2]
[421024252,1776942639287,-500.0,8.775e-05,2]
[421024253,1776942639296,-500.0,8.775e-05,2]
[421024254,1776942639305,-500.0,8.775e-05,2]
[421024255,1776942639315,-350.0,8.775e-05,2]
[421024256,1776942639325,-500.0,8.775e-05,2]
[421024257,1776942639335,-500.0,8.775e-05,2]
[421024258,1776942639344,-150.0,8.775e-05,2]
[421024259,1776942639355,-500.0,8.775e-05,2]
[421024260,1776942639364,-151.0,8.815e-05,2]
[421024261,1776942639374,-155.0,8.817e-05,2]
[421024262,1776942639383,-20813.83731341,8.818e-05,2]
[421024263,1776942639396,-829.67010334,8.818e-05,2]
[421024264,1776942639484,-304.0,8.818e-05,2]
[421024273,1776942640466,-1515.4,8.818e-05,2]
[421024285,1776942646834,-5122.10611139,8.818e-05,2]
[421024287,1776942647097,-5532.0,8.818e-05,2]
[421024290,1776942647260,-2544.67136336,8.818e-05,2]
[421024291,1776942647270,-151.0,8.818e-05,2]
[421024293,1776942647280,-151.0,8.818e-05,2]
[421024294,1776942647290,-151.0,8.818e-05,2]
[421024295,1776942647300,-153.361165,8.818e-05,2]
[421024296,1776942647310,-153.361165,8.818e-05,2]
[421024297,1776942647320,-153.361165,8.818e-05,2]
[421024298,1776942647329,-153.361165,8.818e-05,2]
[421024299,1776942647339,-151.0,8.819e-05,2]
[421024300,1776942647349,-151.0,8.819e-05,2]
[421024301,1776942647359,-151.0,8.819e-05,2]
[421024302,1776942647368,-151.0,8.819e-05,2]
[421024303,1776942647378,-7412.58397664,8.825e-05,2]
[421024354,1776943833313,-280.0,8.219e-05,2]
[421024355,1776943833323,-300.0,8.264e-05,2]
[421024356,1776943833332,-300.0,8.339e-05,2]
[421024357,1776943833342,-300.0,8.339e-05,2]
[421024358,1776943833351,-300.0,8.358e-05,2]
[421024359,1776943833360,-1200.0,8.358e-05,2]
[421024360,1776943833370,-150.0,8.359e-05,2]
[421024361,1776943833379,-150.0,8.359e-05,2]
[421024362,1776943833389,-150.0,8.359e-05,2]
[421024363,1776943833398,-150.0,8.359e-05,2]
[421024364,1776943833409,-150.0,8.359e-05,2]
[421024365,1776943833419,-150.0,8.359e-05,2]
[421024366,1776943833428,-150.0,8.359e-05,2]
[421024367,1776943833437,-150.0,8.359e-05,2]
[421024368,1776943833447,-150.0,8.359e-05,2]
[421024369,1776943833457,-150.0,8.359e-05,2]
[421024370,1776943833467,-1409.32269214,8.359e-05,2]
[421024371,1776943833476,-151.0,8.404e-05,2]
[421024372,1776943833486,-1409.32269213,8.45e-05,2]
[421024373,1776943834019,-150.0,8.452e-05,2]
[421024374,1776943834062,-150.0,8.514e-05,2]
[421024375,1776943834073,-151.0,8.537e-05,2]
[421024376,1776943834082,-150.0,8.539e-05,2]
[421024377,1776943834091,-500.0,8.539e-05,2]
[421024378,1776943834101,-500.0,8.539e-05,2]
[421024379,1776943834110,-500.0,8.539e-05,2]
[421024380,1776943834120,-500.0,8.539e-05,2]
[421024381,1776943834129,-500.0,8.539e-05,2]
[421024382,1776943834139,-500.0,8.539e-05,2]
[421024383,1776943834148,-283.40172937,8.539e-05,2]
[421024384,1776943834212,-216.59827063,8.539e-05,2]
[421024385,1776943834222,-500.0,8.539e-05,2]
[421024386,1776943834232,-500.0,8.539e-05,2]
[421024387,1776943834242,-500.0,8.539e-05,2]
[421024388,1776943834251,-391.71090153,8.539e-05,2]
[421024389,1776943834260,-500.0,8.539e-05,2]
[421024390,1776943834270,-500.0,8.539e-05,2]
[421024391,1776943834279,-500.0,8.539e-05,2]
[421024392,1776943834288,-65586.0961,8.54e-05,2]
[421024393,1776943834298,-36200.18309746,8.54e-05,2]
[421024394,1776943834311,-55405.78547212,8.54e-05,2]
[421024395,1776943834322,-29652.25240464,8.54e-05,2]
[421024397,1776943837699,-368.22,8.497e-05,2]
[421024398,1776943837710,-155.78,8.54e-05,2]
[421024399,1776943837726,-20324.71232578,8.54e-05,2]
[421024400,1776943837737,-1409.32269213,8.54e-05,2]
[421024401,1776943837747,-150.0,8.545e-05,2]
[421024402,1776943837757,-150.0,8.591e-05,2]
[421024403,1776943837768,-1532.0,8.606e-05,2]
[421024404,1776943837777,-151.0,8.637e-05,2]
[421024405,1776943837791,-150.0,8.638e-05,2]
[421024406,1776943837802,-19982.1709,8.64e-05,2]
[421024407,1776943837812,-150.0,8.668e-05,2]
[421024408,1776943837823,-150.0,8.668e-05,2]
[421024409,1776943837833,-500.0,8.685e-05,2]
[421024410,1776943837843,-150.0,8.73e-05,2]
[421024411,1776943837853,-151.0,8.803e-05,2]
[421024412,1776943837863,-151.0,8.803e-05,2]
[421024413,1776943837873,-500.0,8.805e-05,2]
[421024414,1776943837883,-264.18344069,8.805e-05,2]
[421024415,1776943837893,-500.0,8.805e-05,2]
[421024416,1776943837905,-500.0,8.805e-05,2]
[421024417,1776943837915,-500.0,8.805e-05,2]
[421024418,1776943837926,-613.98162356,8.805e-05,2]
[421024419,1776943837936,-500.0,8.805e-05,2]
[421024420,1776943837947,-500.0,8.805e-05,2]
[421024421,1776943837958,-500.0,8.805e-05,2]
[421024422,1776943837968,-500.0,8.805e-05,2]
[421024423,1776943837978,-500.0,8.805e-05,2]
[421024424,1776943837989,-500.0,8.805e-05,2]
[421024425,1776943838000,-500.0,8.805e-05,2]
[421024426,1776943838010,-500.0,8.805e-05,2]
[421024427,1776943838021,-500.0,8.805e-05,2]
[421024428,1776943838031,-500.0,8.805e-05,2]
[421024429,1776943838041,-500.0,8.805e-05,2]
[421024430,1776943838051,-500.0,8.805e-05,2]
[421024431,1776943838061,-500.0,8.805e-05,2]
[421024432,1776943838071,-500.0,8.805e-05,2]
[421024433,1776943838081,-500.0,8.805e-05,2]
[421024434,1776943838091,-500.0,8.805e-05,2]
[421024436,1776943838101,-500.0,8.805e-05,2]
[421024438,1776943838111,-500.0,8.805e-05,2]
[421024440,1776943838122,-500.0,8.805e-05,2]
[421024442,1776943838134,-500.0,8.805e-05,2]
[421024444,1776943838143,-500.0,8.805e-05,2]
[421024446,1776943838153,-500.0,8.805e-05,2]
[421024448,1776943838162,-500.0,8.805e-05,2]
[421024450,1776943838172,-500.0,8.805e-05,2]
[421024452,1776943838181,-500.0,8.805e-05,2]
[421024455,1776943838191,-500.0,8.805e-05,2]
[421024457,1776943838201,-361.39816236,8.805e-05,2]
[421024459,1776943838211,-431.7798196,8.805e-05,2]
[421024461,1776943838220,-500.0,8.805e-05,2]
[421024463,1776943838229,-500.0,8.805e-05,2]
[421024465,1776943838239,-500.0,8.805e-05,2]
[421024467,1776943838249,-500.0,8.805e-05,2]
[421024469,1776943838259,-500.0,8.805e-05,2]
[421024471,1776943838268,-500.0,8.805e-05,2]
[421024472,1776943838277,-843.29,8.805e-05,2]
[421024474,1776943838287,-500.0,8.805e-05,2]
[421024477,1776943838298,-500.0,8.805e-05,2]
[421024479,1776943838307,-500.0,8.805e-05,2]
[421024481,1776943838317,-500.0,8.805e-05,2]
[421024483,1776943838326,-1.64213703,8.805e-05,2]
[421024485,1776943838340,-498.35786297,8.805e-05,2]
[421024487,1776943838351,-500.0,8.805e-05,2]
[421024489,1776943838361,-500.0,8.805e-05,2]
[421024491,1776943838370,-500.0,8.805e-05,2]
[421024493,1776943838380,-500.0,8.805e-05,2]
[421024495,1776943838389,-500.0,8.805e-05,2]
[421024498,1776943838400,-500.0,8.805e-05,2]
[421024500,1776943838409,-500.0,8.805e-05,2]
[421024502,1776943838418,-500.0,8.805e-05,2]
[421024504,1776943838427,-258.91156485,8.805e-05,2]
[421024506,1776943838437,-500.0,8.805e-05,2]
[421024508,1776943838446,-500.0,8.805e-05,2]
[421024510,1776943838456,-500.0,8.805e-05,2]
[421024512,1776943838465,-11998.342063,8.806e-05,2]
[421024514,1776943838475,-228.7075107,8.806e-05,2]
[421024516,1776943838485,-2501.4013583,8.806e-05,2]
[421024518,1776943838495,-28007.76396985,8.806e-05,2]
[421024520,1776943838507,-829.67010334,8.806e-05,2]
[421024522,1776943838519,-669.57770617,8.806e-05,2]
[421024528,1776943838559,-287.68959405,8.806e-05,2]
[421024532,1776943838585,-13548.85592189,8.806e-05,2]
[421024534,1776943838595,-1327.5167488,8.806e-05,2]
[421024536,1776943838605,-37591.2069705,8.806e-05,2]
[421024538,1776943838614,-220.08085,8.806e-05,2]
[421024540,1776943838623,-220.08085,8.806e-05,2]
[421024542,1776943838634,-220.08085,8.806e-05,2]
[421024544,1776943838643,-220.08085,8.806e-05,2]
[421024546,1776943838653,-151.0,8.806e-05,2]
[421024548,1776943838662,-150.0,8.823e-05,2]
[421024550,1776943838672,-150.0,8.823e-05,2]
[421024552,1776943838682,-150.0,8.823e-05,2]
[421024554,1776943838691,-150.0,8.823e-05,2]
[421024557,1776943838703,-150.0,8.823e-05,2]
[421024559,1776943838713,-1093.91752428,8.824e-05,3]
[421024561,1776943838723,-151.0,8.825e-05,2]
[421024563,1776943838732,-500.0,8.825e-05,2]
[421024565,1776943838742,-220.08085,8.825e-05,2]
[421024566,1776943838752,-220.08085,8.825e-05,2]
[421024568,1776943838762,-220.08085,8.825e-05,2]
[421024570,1776943838771,-220.08085,8.825e-05,2]
[421024572,1776943838781,-151.0,8.825e-05,2]
[421024574,1776943838790,-1275.0,8.825e-05,3]
[421024576,1776943838800,-1532.0,8.825e-05,2]
[421024578,1776943838810,-167.0,8.825e-05,2]
[421024580,1776943838819,-152.0,8.825e-05,2]
[421024582,1776943838829,-1532.0,8.825e-05,2]
[421024584,1776943838838,-152.0,8.825e-05,2]
[421024586,1776943838848,-1532.0,8.825e-05,2]
[421024588,1776943838858,-1532.0,8.825e-05,2]
[421024590,1776943838868,-1532.0,8.825e-05,2]
[421024591,1776943838878,-1532.0,8.825e-05,2]
[421024592,1776943838887,-18054.49256076,8.825e-05,2]
[421024593,1776943838897,-392.62,8.836e-05,2]
[421024594,1776943838907,-178.994335,8.843e-05,2]
[421024595,1776943838917,-151.0,8.854e-05,2]
[421024596,1776943838927,-605.46703147,8.854e-05,2]
[421024597,1776943838937,-500.0,8.857e-05,2]
[421024598,1776943838948,-500.0,8.857e-05,2]
[421024599,1776943838958,-500.0,8.857e-05,2]
[421024600,1776943838968,-500.0,8.857e-05,2]
[421024601,1776943838979,-214.42567638,8.857e-05,2]
[421024602,1776943838988,-500.0,8.857e-05,2]
[421024603,1776943838998,-500.0,8.857e-05,2]
[421024604,1776943839009,-500.0,8.857e-05,2]
[421024605,1776943839019,-609.85706658,8.857e-05,2]
[421024606,1776943839029,-500.0,8.857e-05,2]
[421024607,1776943839039,-150.0,8.857e-05,2]
[421024608,1776943839049,-500.0,8.857e-05,2]
[421024609,1776943839058,-500.0,8.857e-05,2]
[421024610,1776943839068,-500.0,8.857e-05,2]
[421024611,1776943839078,-500.0,8.857e-05,2]
[421024612,1776943839089,-500.0,8.857e-05,2]
[421024613,1776943839099,-500.0,8.857e-05,2]
[421024614,1776943839108,-500.0,8.857e-05,2]
[421024615,1776943839118,-500.0,8.857e-05,2]
[421024616,1776943839128,-451.12624517,8.857e-05,2]
[421024617,1776943839137,-500.0,8.857e-05,2]
[421024618,1776943839146,-500.0,8.857e-05,2]
[421024619,1776943839156,-500.0,8.857e-05,2]
[421024620,1776943839165,-500.0,8.857e-05,2]
[421024621,1776943839175,-500.0,8.857e-05,2]
[421024622,1776943839189,-500.0,8.857e-05,2]
[421024623,1776943839199,-500.0,8.857e-05,2]
[421024624,1776943839208,-500.0,8.857e-05,2]
[421024625,1776943839218,-290.62362429,8.857e-05,2]
[421024626,1776943839227,-150.0,8.857e-05,2]
[421024627,1776943839237,-3176.0,8.859e-05,2]
[421024628,1776943839248,-3176.0,8.859e-05,2]
[421024629,1776943839257,-3176.0,8.859e-05,2]
[421024630,1776943839267,-3176.0,8.859e-05,2]
[421024631,1776943839277,-3176.0,8.859e-05,2]
[421024632,1776943839286,-3176.0,8.859e-05,2]
[421024633,1776943839296,-3176.0,8.859e-05,2]
[421024634,1776943839307,-3176.0,8.859e-05,2]
[421024635,1776943839317,-500.0,8.859e-05,2]
[421024636,1776943839326,-500.0,8.859e-05,2]
[421024637,1776943839338,-3176.0,8.859e-05,2]
[421024638,1776943839347,-3176.0,8.859e-05,2]
[421024639,1776943839357,-500.0,8.859e-05,2]
[421024640,1776943839367,-3176.0,8.859e-05,2]
[421024641,1776943839376,-500.0,8.859e-05,2]
[421024642,1776943839386,-500.0,8.859e-05,2]
[421024643,1776943839396,-3176.0,8.859e-05,2]
[421024644,1776943839405,-296.14062782,8.859e-05,2]
[421024645,1776943839415,-3176.0,8.859e-05,2]
[421024646,1776943839425,-3176.0,8.859e-05,2]
[421024647,1776943839434,-3176.0,8.859e-05,2]
[421024648,1776943839444,-3176.0,8.859e-05,2]
[421024649,1776943839453,-3176.0,8.859e-05,2]
[421024650,1776943839463,-3176.0,8.859e-05,2]
[421024651,1776943839473,-3176.0,8.859e-05,2]
[421024652,1776943839483,-3176.0,8.859e-05,2]
[421024653,1776943839493,-3176.0,8.859e-05,2]
[421024654,1776943839503,-3176.0,8.859e-05,2]
[421024655,1776943839512,-3176.0,8.859e-05,2]
[421024656,1776943839521,-3199.0,8.859e-05,2]
[421024657,1776943839531,-150.0,8.859e-05,2]
[421024659,1776943839541,-150.0,8.859e-05,2]
[421024660,1776943839551,-200.0,8.859e-05,2]
[421024661,1776943839560,-220.08085,8.859e-05,2]
[421024662,1776943839570,-220.08085,8.859e-05,2]
[421024663,1776943839579,-220.08085,8.859e-05,2]
[421024664,1776943839589,-220.08085,8.859e-05,2]
[421024665,1776943839598,-152.0,8.899e-05,7]
[421024666,1776943839608,-152.0,8.899e-05,7]
[421024667,1776943839618,-150.0,8.916e-05,2]
[421024668,1776943839627,-1008.81748156,8.918e-05,3]
[421024669,1776943839637,-220.08085,8.918e-05,2]
[421024670,1776943839647,-220.08085,8.918e-05,2]
[421024671,1776943839656,-220.08085,8.918e-05,2]
[421024672,1776943839667,-220.08085,8.918e-05,2]
[421024674,1776943839677,-150.0,8.978e-05,2]
[421024676,1776943839687,-150.0,8.978e-05,2]
[421024677,1776943839696,-150.0,9.009e-05,2]
[421024678,1776943839706,-500.0,9.014e-05,2]
[421024679,1776943839716,-300.0,9.027e-05,2]
[421024680,1776943839725,-2500.0,9.034e-05,2]
[421024681,1776943839735,-300.0,9.041e-05,2]
[421024683,1776943840360,-5000.0,9.041e-05,2]
[421024684,1776943840387,-193.0,9.041e-05,2]
[421024685,1776943840397,-250.0,9.041e-05,2]
[421024686,1776943840406,-150.0,9.055e-05,2]
[421024687,1776943840416,-500.0,9.079e-05,2]
[421024688,1776943840425,-843.29,9.079e-05,2]